Cogmind - Beta 11.1 @@@ ROGUE MODE // 2022.12.13 @ 22:21:21 Player: sasha Result: Destroyed by G-50 Soldier with Heavy Laser Performance ------------- Evolutions (4) 2000 Regions Visited (11) 2200 Robots Destroyed (148) 740 Value Destroyed (5385) 5385 Prototype IDs (5) 100 Alien Tech Used (0) 0 Bonus (169) 169 TOTAL SCORE: 10594 Bonus ------- High Alert Combat Kills 34 Follower Combat Kills 135 Cogmind --------- Core Integrity 0/850 Matter 12/300 Energy 99/100 System Corruption 20% Temperature Cool (18) Movement Core (50) Location -6/Factory Parts ------- > --- POWER (1) -------- (None) > --- PROPULSION (5) --- (None) > --- UTILITY (7) ------ (None) > --- WEAPON (2) ------- (None) > --- INVENTORY (5) ---- Improved Sensor Array Armor Integrity Analyzer Improved Reaction Control System Hardened Medium Armor Plating Advanced Field Recycling Unit (0) Peak State ------------ > --- POWER ------------ Improved Deuterium Engine > --- PROPULSION ------- Light Treads Advanced Treads Medium Treads Gravmag System Gravmag System > --- UTILITY ---------- Advanced Heat Sink Huge Storage Unit Core Analyzer Heavy Armor Plating Hardened Heavy Armor Plating > --- WEAPON ----------- Gauss Cannon Mini Assault Cannon > --- INVENTORY -------- Light Angular Momentum Engine Light Angular Momentum Engine Gravmag System Gravmag System Compact Battery High-capacity Matter Pod Improved Sensor Array Improved Signal Interpreter Improved Melee Analysis Suite Armor Integrity Analyzer Armor Integrity Analyzer Kinecellerator Weapon Cycler Transmission Jammer Improved Weapon Shielding Medium Armor Plating Heavy Armor Plating Hardened Medium Armor Plating Improved Light Armor Plating Makeshift Armor Plating Thermal Shield Long-range Tractor Beam Improved Heavy Machine Gun Proton Missile Launcher [Rating: 62] Favorites ----------- Power Light Nuclear Core Engine Improved Deuterium Engine Power Core Light Nuclear Core Propulsion Light Treads Treads Light Treads Leg Flexi-carbon Leg Hover Unit Gravmag System Utility Huge Storage Unit Device Advanced Heat Sink Storage Huge Storage Unit Processor Melee Analysis Suite Protection Improved Utility Shielding Weapon Ripper Energy Gun Particle Gun Ballistic Gun Light Assault Rifle Ballistic Cannon Mini Assault Cannon Launcher Proton Missile Launcher Impact Weapon Powered Hammer Slashing Weapon Ripper Special Melee Weapon Datajack Build | -11 -10 -10 -9 -9 -8 -7 -7 -7 -6 -6 -6 ------- Run | Scr Mat Min Mat Min Mat Fac Low Low Fac Was Fac Slots Evolved 8 | . . . 2 . 2 2 . . 2 . . Power . | . . . . . . . . . . . . Propulsion 3 | . . . 1 . 1 1 . . . . . Utility 5 | . . . 1 . 1 1 . . 2 . . Weapon . | . . . . . . . . . . . . Parts Attached 143 | 7 3 5 24 1 49 25 5 1 21 2 . Power 14 | 1 . 1 2 . 5 4 . . 1 . . Engine 7 | 1 . 1 . . 1 3 . . 1 . . Core 7 | . . . 2 . 4 1 . . . . . Reactor . | . . . . . . . . . . . . Propulsion 56 | 2 . 1 9 . 23 12 1 . 7 1 . Treads 49 | 2 . 1 8 . 23 12 1 . 2 . . Leg 1 | . . . 1 . . . . . . . . Wheel . | . . . . . . . . . . . . Hover 6 | . . . . . . . . . 5 1 . Flight . | . . . . . . . . . . . . Utility 41 | 1 1 1 5 . 14 5 2 1 11 . . Device 10 | . . 1 . . . . . . 9 . . Storage 4 | 1 1 . 1 . 1 . . . . . . Processor 8 | . . . 2 . 3 3 . . . . . Hackware . | . . . . . . . . . . . . Protection 19 | . . . 2 . 10 2 2 1 2 . . Artifact . | . . . . . . . . . . . . Weapon 32 | 3 2 2 8 1 7 4 2 . 2 1 . Energy Gun 4 | 1 . 1 . . 1 . . . . 1 . Energy Cannon . | . . . . . . . . . . . . Ballistic Gun 16 | 2 1 . 6 1 6 . . . . . . Ballistic Cannon 6 | . . 1 . . . 3 1 . 1 . . Launcher 3 | . . . 1 . . . 1 . 1 . . Special Weapon . | . . . . . . . . . . . . Impact Weapon 1 | . . . . . . 1 . . . . . Slashing Weapon 1 | . . . 1 . . . . . . . . Piercing Weapon . | . . . . . . . . . . . . Special Melee Weapon 1 | . 1 . . . . . . . . . . Unidentified Prototypes 3 | . . . 1 . . 2 . . . . . Corrupted Parts 2 | . . . . . . . 1 . . 1 . System Corruption 12 | . . . . . . . 5 . . 7 . Parts Lost 56 | . 1 3 6 . 19 6 1 1 19 . . Power 6 | . . 1 2 . 2 . . . 1 . . Propulsion 28 | . . 1 1 . 10 5 1 . 10 . . Utility 12 | . . . 1 . 5 . . 1 5 . . Weapon 10 | . 1 1 2 . 2 1 . . 3 . . Highest Loss Streak 9 | . 1 2 3 . 5 2 1 1 9 . . To Critical Strikes . | . . . . . . . . . . . . Average Slot Usage (%) 92 | . 84 77 97 100 99 99 98 91 78 9 9 Engine 3 | . 14 2 2 . . 3 7 7 5 . . Core 4 | . . . 8 11 7 3 . . . . . Treads 31 | . 28 28 26 33 35 37 37 38 23 . . Storage 9 | . 14 14 11 11 9 7 7 7 5 . . Processor 15 | . . . 16 22 18 24 26 7 6 6 4 Protection 5 | . . . 4 . 8 5 2 14 13 . . Energy Gun 1 | . . 11 . . 2 . . . . 1 4 Ballistic Gun 5 | . 20 7 9 11 6 . . . . . . Ballistic Cannon 3 | . . 9 . . . 6 6 7 11 . . Slashing Weapon 5 | . . . 10 11 9 3 . . . . . Naked Turns 64 | . . . . . . . . . . . 64 Heaviest Build 137 | 13 29 32 91 91 97 102 123 122 137 6 6 Greatest Support 110 | 40 40 40 60 60 88 104 104 102 110 9 3 Greatest Overweight (x) 28 | 1 . . 1 1 1 1 1 1 28 1 1 Average Overweight (x) . | . . . . 1 1 . . 1 1 . . Largest Inventory Capacity 25 | 8 15 15 25 25 25 25 25 25 25 5 5 Average Capacity 21 | 6 13 15 15 25 25 25 25 25 24 5 5 Most Carried 25 | 5 11 14 19 20 25 25 25 25 25 5 5 Average Carried 19 | 3 7 10 13 19 23 24 24 25 23 4 5 Final Capacity 25 | 8 15 15 25 25 25 25 25 25 5 5 5 Final Carried 25 | 2 10 12 19 19 25 25 25 25 5 5 5 Class Distribution -------------------- 66% | Scavenger-Mutant 33% | Mutant Dominant Class ---------------- Mutant | -10/Materials Mutant | -10/Mines Scavenger-Mutant | -9/Materials Scavenger-Mutant | -9/Mines Scavenger-Mutant | -8/Materials Scavenger-Mutant | -7/Factory Scavenger-Mutant | -7/Lower Caves Scavenger-Mutant | -7/Lower Caves Scavenger-Mutant | -6/Factory Mutant | -6/Waste Mutant | -6/Factory Resources | -11 -10 -10 -9 -9 -8 -7 -7 -7 -6 -6 -6 ----------- Run | Scr Mat Min Mat Min Mat Fac Low Low Fac Was Fac Matter Collected 2870 | 231 272 159 258 50 748 479 163 32 478 . . Remotely 132 | . . . . . . . . . 132 . . Salvage Created 6000 | . 328 153 1270 30 2015 1147 507 159 391 . . Parts 350 | . 31 2 85 5 107 58 18 9 35 . . Haulers Intercepted 9 | . . . 3 . 5 1 . . . . . Recyclers Shooed . | . . . . . . . . . . . . Parts Field Recycled . | . . . . . . . . . . . . Retrieved Matter . | . . . . . . . . . . . . Parts Self-Destructed 14 | . . . . . . . 11 3 . . . Prevented 12 | . . . . . . . 7 5 . . . Kills | -11 -10 -10 -9 -9 -8 -7 -7 -7 -6 -6 -6 ------- Run | Scr Mat Min Mat Min Mat Fac Low Low Fac Was Fac Combat Hostiles Destroyed 124 | . 9 8 22 2 38 21 9 3 12 . . Melee 66 | . . . 19 2 27 17 1 . . . . Guns 28 | . 9 5 3 . 11 . . . . . . Cannons 18 | . . 3 . . . 1 1 1 12 . . AOE 9 | . . . . . . . 7 2 . . . Classes Destroyed 15 | . 5 1 3 . 2 2 1 . 1 . . Worker 1 | . . . . . . . . . 1 . . Builder 2 | . 1 . . . . . . . 1 . . Hauler 9 | . . . 3 . 5 1 . . . . . Recycler 2 | . . . . . . 2 . . . . . Operator 2 | . 1 . 1 . . . . . . . . Watcher 14 | . 1 . 5 . 5 . . . 3 . . Swarmer 17 | . 3 . . 2 8 2 2 . . . . Cutter 1 | . . . . . 1 . . . . . . Grunt 59 | . 6 2 13 . 20 9 1 2 6 . . Brawler 1 | . . . . . . . 1 . . . . Duelist 5 | . . . 1 . . . 3 1 . . . Sentry 20 | . . . 8 . 8 3 1 . . . . Hunter 4 | . . . . . 1 1 1 . 1 . . Programmer 11 | . . . . . . 6 . . 5 . . Assembled 6 | . . 6 . . . . . . . . . Best Kill Streak 8 | . 3 3 3 2 5 4 8 3 2 . . Combat Bots Only 8 | . 3 3 3 2 5 4 8 3 2 . . Max Kills in Single Turn 2 | . 1 1 1 1 2 1 2 1 1 . . Gunslinging . | . . . . . . . . . . . . Exploded 2 | . . . . . . . 2 1 . . . Melee 1 | . . . 1 1 1 1 1 . . . . Uniques/NPCs Destroyed . | . . . . . . . . . . . . Combat | -11 -10 -10 -9 -9 -8 -7 -7 -7 -6 -6 -6 -------- Run | Scr Mat Min Mat Min Mat Fac Low Low Fac Was Fac Damage Taken 12116 | . 415 523 854 180 3587 2416 842 126 2934 . 239 Core 2357 | . 82 102 266 16 402 542 80 . 628 . 239 Absorbed by Shields . | . . . . . . . . . . . . Redirected to Shielding 529 | . . . . . 376 35 90 28 . . . Regen/Repaired (Parts) 885 | . . . 458 . 219 85 . . 123 . . Core Remaining (%) 38 | 100 . 26 . 29 26 . . 11 . . . Volleys Fired 293 | . 57 24 44 . 87 10 9 5 51 . 6 Largest 2 | . 2 2 2 . 1 1 1 1 2 . 1 Hottest 100 | . 40 100 100 . 65 48 48 48 96 . 88 Shots Fired 411 | . 81 49 56 . 87 13 10 6 103 . 6 Gun 265 | . 81 42 49 . 87 . . . . . 6 Cannon 137 | . . 7 7 . . 13 5 2 103 . . Launcher 9 | . . . . . . . 5 4 . . . Special . | . . . . . . . . . . . . Kinetic 367 | . 81 27 53 . 83 13 5 2 103 . . Thermal 35 | . . 22 3 . 4 . . . . . 6 Explosive . | . . . . . . . . . . . . Electromagnetic 9 | . . . . . . . 5 4 . . . Robot Hit Streak 16 | . 9 10 11 . 16 3 7 12 11 . 8 Robot Miss Streak 5 | . 4 4 4 . 4 3 1 . 5 . . Penetration Max 1 | . . . . . 1 . . . . . . Secondary Targets 1 | . 1 . . . . . . . . . . Max Gunslinging Chain 1 | . 1 . . . . . . . . . . Shots Hit Robots 463 | . 51 27 81 4 141 70 10 5 68 . 6 Core Hits 212 | . 20 17 35 2 63 23 18 5 27 . 2 Critical Kills 2 | . 1 . . . . . 1 . . . . Critical Parts Destroyed 4 | . 1 . . . . 3 . . . . . Critical Strikes 35 | . 2 . 4 1 13 7 1 . 7 . . Destroy 2 | . 2 . . . . . . . . . . Blast 7 | . . . . . . . . . 7 . . Smash 4 | . . . . . . 3 1 . . . . Sever 22 | . . . 4 1 13 4 . . . . . Melee Attacks 250 | . 5 . 50 12 105 75 3 . . . . Impact 17 | . . . . . . 14 3 . . . . Slashing 228 | . . . 50 12 105 61 . . . . . Piercing . | . . . . . . . . . . . . Sneak Attacks 17 | . 5 . 5 . 5 2 . . . . . Combat Hostiles 2 | . . . 1 . 1 . . . . . . Follow-up Attacks . | . . . . . . . . . . . . Damage Inflicted 13591 | . 548 434 2207 137 4402 2823 806 227 1830 . 177 Guns 2723 | . 548 340 277 . 1396 . . . . . 162 Cannons 2209 | . . 81 84 . . 133 81 54 1776 . . Explosions 764 | . . . . . . . 591 173 . . . Melee 7781 | . . . 1846 137 3006 2658 134 . . . . Ramming 114 | . . 13 . . . 32 . . 54 . 15 Kinetic 4498 | . 548 225 312 . 1369 133 81 54 1776 . . Thermal 509 | . . 196 49 . 27 . 75 . . . 162 Explosive . | . . . . . . . . . . . . Electromagnetic 689 | . . . . . . . 516 173 . . . Impact 867 | . . . . . . 733 134 . . . . Slashing 6914 | . . . 1846 137 3006 1925 . . . . . Piercing . | . . . . . . . . . . . . Highest Corruption 20 | . 2 2 . . . 5 10 11 5 20 20 Average Corruption 4 | . 2 2 . . . 2 5 11 2 11 20 Corruption Purged . | . . . . . . . . . . . . Corruption Blocked . | . . . . . . . . . . . . Effects 137 | . 10 16 . . . 34 31 11 20 3 12 Message Errors 40 | . 4 5 . . . 9 8 5 5 1 3 Matter Fused 24 | . 1 4 . . . 5 6 . 7 . 1 Heat Flow Errors 13 | . 2 1 . . . 2 3 2 1 1 1 Energy Discharges 19 | . 1 2 . . . 5 6 1 2 . 2 Parts Rejected 2 | . . . . . . . . . 1 1 . Data Loss (minor) 16 | . . . . . . 8 5 1 2 . . Data Loss (major) 10 | . 1 2 . . . 2 2 1 1 . 1 Misfires 7 | . . 1 . . . 3 1 1 1 . . Alerts 3 | . 1 1 . . . . . . . . 1 Misdirections 3 | . . . . . . . . . . . 3 Overload Shots . | . . . . . . . . . . . . Overflow Damage 481 | . . . 116 . 67 261 . . 37 . . Projectiles 37 | . . . . . . . . . 37 . . Explosions . | . . . . . . . . . . . . Melee 444 | . . . 116 . 67 261 . . . . . Knockbacks 37 | . . 1 1 . . 9 . 1 25 . . Impact 6 | . . . . . . 6 . . . . . Kinetic 27 | . . 1 1 . . 2 . 1 22 . . Secondary 4 | . . . . . . 1 . . 3 . . Self-Inflicted Damage 102 | . . . . . . . 52 43 . . 7 Shots 7 | . . . . . . . 4 3 . . . Rammed 16 | . . 3 . . . 2 . . 8 . 3 Targets Rammed 17 | . . 3 . . . 2 . . 9 . 3 Kicked . | . . . . . . . . . . . . Crushed 1 | . . . . . . . . . 1 . . Highest Temperature 419 | . 236 134 90 . 23 249 240 210 419 250 196 Average Temperature 73 | . 64 39 30 . 9 83 62 61 123 194 61 Received Heat Transfer 3881 | . 204 131 270 . 1530 672 93 . 873 . 108 Effects 2 | . . . . . . . . . 2 . . Shutdowns 1 | . . . . . . . . . 1 . . Short Circuit 1 | . . . . . . . . . 1 . . Siege Activations . | . . . . . . . . . . . . Robots Corrupted . | . . . . . . . . . . . . Combat Hostiles . | . . . . . . . . . . . . Parts Fried 8 | . . . . . . 2 5 1 . . . Impact Corruptions 9 | . . . . . . 9 . . . . . Robots Melted . | . . . . . . . . . . . . Combat Hostiles . | . . . . . . . . . . . . Parts Melted . | . . . . . . . . . . . . Heat Transferred 988 | . . 481 111 . 74 . 100 . . . 222 Parts Sabotaged . | . . . . . . . . . . . . Parts Stolen . | . . . . . . . . . . . . Parts Stripped . | . . . . . . . . . . . . Power Chain Reactions 1 | . . . . . . . 1 . . . . Missiles Intercepted . | . . . . . . . . . . . . Alert | -11 -10 -10 -9 -9 -8 -7 -7 -7 -6 -6 -6 ------- Run | Scr Mat Min Mat Min Mat Fac Low Low Fac Was Fac Peak Influence 602 | . 175 111 357 114 602 379 . . 238 31 21 Initial 268 | . . 13 19 114 . 268 . . 56 1 21 Average 162 | . 62 36 162 68 249 192 . . 121 15 21 Maximum Alert Level 2 | . . . 1 . 2 1 . . 1 . . Low Security (%) 68 | 100 100 100 63 100 47 54 . . 84 100 100 Level 1 25 | . . . 36 . 32 45 . . 15 . . Level 2 5 | . . . . . 20 . . . . . . Level 3 . | . . . . . . . . . . . . Level 4 . | . . . . . . . . . . . . Level 5 . | . . . . . . . . . . . . High Security . | . . . . . . . . . . . . Max Security . | . . . . . . . . . . . . Squads Dispatched 44 | . 5 . 2 . 10 16 . . 9 . 2 Investigation 12 | . 2 . 2 . 4 3 . . 1 . . Extermination 9 | . . . . . . 6 . . 3 . . Reinforcement 11 | . 3 . . . 3 1 . . 2 . 2 Assault . | . . . . . . . . . . . . Garrison 12 | . . . . . 3 6 . . 3 . . Intercept . | . . . . . . . . . . . . Searches Triggered . | . . . . . . . . . . . . Construction Impeded 1 | . . . . . . . . . . . 1 Haulers Reinforced 2 | . . . . . . . . . 1 . 1 Active Scanning Responses . | . . . . . . . . . . . . Cargo Convoy Interrupts . | . . . . . . . . . . . . Stealth | -11 -10 -10 -9 -9 -8 -7 -7 -7 -6 -6 -6 --------- Run | Scr Mat Min Mat Min Mat Fac Low Low Fac Was Fac Distress Signals 8 | . 1 . 4 . 2 . . . 1 . . Communications Jammed . | . . . . . . . . . . . . Distress Signals . | . . . . . . . . . . . . Times Spotted 220 | . 17 23 34 5 63 32 11 2 24 6 3 Peak Tracking Total 9 | . 3 4 4 3 6 4 9 2 6 6 3 Tactical Retreats 24 | . 3 3 1 3 10 2 1 . 1 . . Traps | -11 -10 -10 -9 -9 -8 -7 -7 -7 -6 -6 -6 ------- Run | Scr Mat Min Mat Min Mat Fac Low Low Fac Was Fac Traps Triggered 12 | . 2 . 1 . 1 4 . . 3 . 1 Indirectly . | . . . . . . . . . . . . Trap Hack Attempts . | . . . . . . . . . . . . Triggered . | . . . . . . . . . . . . Disarmed . | . . . . . . . . . . . . Reprogrammed . | . . . . . . . . . . . . Reused . | . . . . . . . . . . . . Traps Extracted . | . . . . . . . . . . . . Installed . | . . . . . . . . . . . . Triggered . | . . . . . . . . . . . . Machines | -11 -10 -10 -9 -9 -8 -7 -7 -7 -6 -6 -6 ---------- Run | Scr Mat Min Mat Min Mat Fac Low Low Fac Was Fac Machines Disabled 6 | . 2 1 . . 3 . . . . . . Max in Single Turn 1 | . 1 . . . 1 . . . . . . Machines Sabotaged . | . . . . . . . . . . . . Garrisons Compromised . | . . . . . . . . . . . . Overloaded Fab Kills . | . . . . . . . . . . . . Hacking | -11 -10 -10 -9 -9 -8 -7 -7 -7 -6 -6 -6 --------- Run | Scr Mat Min Mat Min Mat Fac Low Low Fac Was Fac Machines Accessed 39 | . 5 . 7 . 13 8 1 . 5 . . Terminals 20 | . 4 . 3 . 8 3 . . 2 . . Fabricators . | . . . . . . . . . . . . Repair Stations 7 | . . . 2 . 2 2 . . 1 . . Recycling Units 4 | . 1 . . . 1 1 . . 1 . . Scanalyzers 4 | . . . 2 . 1 1 . . . . . Garrison Access 3 | . . . . . 1 1 . . 1 . . Total Hacks 107 | . 14 . 32 . 34 18 1 . 8 . . Successful 62 | . 5 . 23 . 15 13 1 . 5 . . Failed 45 | . 9 . 9 . 19 5 . . 3 . . Catastrophic 8 | . 2 . . . 5 1 . . . . . Database Lockouts . | . . . . . . . . . . . . Manual 35 | . 8 . 2 . 19 5 . . 1 . . Terminals 45 | . 13 . 8 . 17 4 . . 3 . . Fabricators . | . . . . . . . . . . . . Repair Stations 35 | . . . 17 . 10 5 . . 3 . . Recycling Units 7 | . 1 . . . 2 3 . . 1 . . Scanalyzers 15 | . . . 7 . 3 5 . . . . . Garrison Access 4 | . . . . . 2 1 . . 1 . . Terminal Hacks 13 | . 4 . 3 . 2 2 1 . 1 . . Prototype ID Bank 1 | . . . 1 . . . . . . . . Open Door 1 | . . . . . . . 1 . . . . Open DSF 3 | . . . . . . 2 . . 1 . . Branch Access Points 4 | . 1 . 1 . 2 . . . . . . Unreport Threat 1 | . 1 . . . . . . . . . . Recall Investigation 1 | . 1 . . . . . . . . . . Hauler Manifests 1 | . 1 . . . . . . . . . . Zone Layout 1 | . . . 1 . . . . . . . . Fabricator Hacks . | . . . . . . . . . . . . Repair Station Hacks 28 | . . . 13 . 8 4 . . 3 . . Scan Component 16 | . . . 7 . 5 2 . . 2 . . Repair 12 | . . . 6 . 3 2 . . 1 . . Recycling Unit Hacks 1 | . 1 . . . . . . . . . . Retrieve Components 1 | . 1 . . . . . . . . . . Scanalyzer 15 | . . . 7 . 3 5 . . . . . Insert Component 7 | . . . 4 . 1 2 . . . . . Analyze 8 | . . . 3 . 2 3 . . . . . Garrison Access Hacks . | . . . . . . . . . . . . Unauthorized Hacks 5 | . . . . . 2 2 . . 1 . . Terminals . | . . . . . . . . . . . . Fabricators . | . . . . . . . . . . . . Repair Stations . | . . . . . . . . . . . . Recycling Units 5 | . . . . . 2 2 . . 1 . . Reject 2 | . . . . . 1 1 . . . . . Mask 3 | . . . . . 1 1 . . 1 . . Scanalyzers . | . . . . . . . . . . . . Garrison Access . | . . . . . . . . . . . . Data Cores Recovered 1 | . . . 1 . . . . . . . . Used . | . . . . . . . . . . . . Hacking Detections 27 | . 3 . 4 . 10 6 . . 4 . . Full Trace Events 10 | . 1 . 1 . 5 2 . . 1 . . Feedback Events . | . . . . . . . . . . . . Feedback Blocked . | . . . . . . . . . . . . Robot Schematics Acquired . | . . . . . . . . . . . . Robots Built . | . . . . . . . . . . . . Authchips . | . . . . . . . . . . . . Time . | . . . . . . . . . . . . Total Robot Build Rating . | . . . . . . . . . . . . Part Schematics Acquired 5 | . . . 2 . 1 2 . . . . . Parts Built . | . . . . . . . . . . . . Authchips . | . . . . . . . . . . . . Time . | . . . . . . . . . . . . Total Part Build Rating . | . . . . . . . . . . . . Parts Repaired 12 | . . . 6 . 3 2 . . 1 . . Time 344 | . . . 156 . 90 72 . . 26 . . Parts Recycled . | . . . . . . . . . . . . Recycled Matter . | . . . . . . . . . . . . Retrieved Matter . | . . . . . . . . . . . . Retrieved Components 9 | . 9 . . . . . . . . . . Parts Scanalyzed 6 | . . . 3 . 1 2 . . . . . Part Schematics Acquired 5 | . . . 2 . 1 2 . . . . . Parts Damaged 1 | . . . . . . 1 . . . . . Bothacking | -11 -10 -10 -9 -9 -8 -7 -7 -7 -6 -6 -6 ------------ Run | Scr Mat Min Mat Min Mat Fac Low Low Fac Was Fac Used RIF Installer . | . . . . . . . . . . . . Robots Hacked 3 | . 3 . . . . . . . . . . Non-combat 3 | . 3 . . . . . . . . . . Combat . | . . . . . . . . . . . . Robot Hacks Applied 3 | . 3 . . . . . . . . . . parse_system 1 | . 1 . . . . . . . . . . no_distress 1 | . 1 . . . . . . . . . . find_recycling 1 | . 1 . . . . . . . . . . Relay Couplers Released . | . . . . . . . . . . . . Fabnet Peak Effective % . | . . . . . . . . . . . . Robots Rewired . | . . . . . . . . . . . . Allies Hacked 2 | . . . . . . 2 . . . . . Hacks Repelled . | . . . . . . . . . . . . Allies | -11 -10 -10 -9 -9 -8 -7 -7 -7 -6 -6 -6 -------- Run | Scr Mat Min Mat Min Mat Fac Low Low Fac Was Fac Total Allies 8 | . . 5 . . . 3 . . . . . Largest Group 3 | . . 3 . . . 3 . . . . . Highest-Rated Group 93 | . . 59 . . . 93 . . . . . Highest-Rated Ally 31 | . . 31 . . . 31 . . . . . Total Orders . | . . . . . . . . . . . . Ally Attacks 43 | . . 18 . . . 25 . . . . . Total Damage 819 | . . 476 . . . 343 . . . . . Kills 8 | . . 5 . . . 3 . . . . . Allies Corrupted . | . . . . . . . . . . . . Allies Melted . | . . . . . . . . . . . . Intel | -11 -10 -10 -9 -9 -8 -7 -7 -7 -6 -6 -6 ------- Run | Scr Mat Min Mat Min Mat Fac Low Low Fac Was Fac Robot Analysis Total . | . . . . . . . . . . . . Derelict Logs Recovered 3 | . . 2 . . . . 1 . . . . Drone Launches . | . . . . . . . . . . . . Drone Recoveries . | . . . . . . . . . . . . Exploration | -11 -10 -10 -9 -9 -8 -7 -7 -7 -6 -6 -6 ------------- Run | Scr Mat Min Mat Min Mat Fac Low Low Fac Was Fac Turns Passed 16703 | 66 1343 1135 2116 945 4511 3051 1225 288 1726 55 242 Spaces Moved 7151 | 40 696 593 831 368 1534 1432 685 117 494 95 266 Core 398 | 13 . . . . . . . . 51 68 266 Treads 6714 | 27 696 593 831 368 1534 1432 685 117 431 . . Legs . | . . . . . . . . . . . . Wheels . | . . . . . . . . . . . . Hover 39 | . . . . . . . . . 12 27 . Flight . | . . . . . . . . . . . . Fastest Speed 50 | 50 160 160 160 240 225 154 154 237 50 50 50 Average Speed 184 | 130 160 160 163 240 235 165 163 237 236 54 77 Slowest Speed 1450 | 160 160 160 240 240 240 242 237 237 1450 100 100 Overloaded Moves . | . . . . . . . . . . . . Propulsion Burnouts . | . . . . . . . . . . . . Robots Hopped . | . . . . . . . . . . . . Cave-ins Triggered . | . . . . . . . . . . . . Exploration Rate (%) 55 | 3 97 88 75 68 93 37 73 18 19 93 6 Regions Visited 11 Branch Regions 4 Pre-discovered Areas 1 | . . 1 . . . . . . . . . Known Exits Taken 2 | . 1 . 1 . . . . . . . . Unknown Exits Taken 7 | 1 . 1 . 1 1 1 1 1 . . . Scrap Searched 11 | . . 3 . 1 . . 7 . . . . Spaces Dug . | . . . . . . . . . . . . Terrain Destroyed 25 | . . . . . . 2 4 . 19 . . Melee . | . . . . . . . . . . . . Projectile 22 | . . . . . . 2 1 . 19 . . AOE 3 | . . . . . . . 3 . . . . Terrain Rammed . | . . . . . . . . . . . . Walls Destroyed . | . . . . . . . . . . . . Machines Disabled . | . . . . . . . . . . . . Actions | -11 -10 -10 -9 -9 -8 -7 -7 -7 -6 -6 -6 --------- Run | Scr Mat Min Mat Min Mat Fac Low Low Fac Was Fac Total 9921 | 52 843 730 1467 413 2200 1993 775 122 934 97 295 Wait 1825 | . 72 96 467 31 340 402 64 . 333 . 20 Move 7141 | 39 695 592 830 367 1533 1431 684 116 494 94 266 Hop . | . . . . . . . . . . . . Pick Up 153 | 5 10 8 34 1 52 24 6 . 12 1 . Fast Attach 21 | 4 . . 3 . 5 5 . 1 2 1 . Attach 66 | 2 1 4 12 1 23 10 2 . 10 1 . Detach . | . . . . . . . . . . . . Swap 56 | 1 2 1 9 . 21 10 3 . 9 . . Drop 95 | 1 1 2 18 1 34 24 4 . 10 . . Fire 293 | . 57 24 44 . 87 10 9 5 51 . 6 Melee 250 | . 5 . 50 12 105 75 3 . . . . Ram 3 | . . . . . . . . . . . 3 Kick . | . . . . . . . . . . . . Crush 14 | . . 3 . . . 2 . . 9 . . Escape Stasis 4 | . . . . . . . . . 4 . . Rewire . | . . . . . . . . . . . . Trap . | . . . . . . . . . . . . Miscellaneous . | . . . . . . . . . . . . Route ------- -11/Scrapyard -10/Materials (discovered 5 exits: *Mat x3 / *Min x2) -10/Mines (discovered 2 exits: *Mat / [*Exi]) -9/Materials (discovered 4 exits: *Mat x2 / *Min x2) -9/Mines (discovered 2 exits: *Mat x2) -8/Materials (discovered 2 exits: *Fac x2) -7/Factory (discovered 4 exits: *Fac / [*Sto x2] / *Low) -7/Lower Caves -7/Lower Caves -6/Factory -6/Waste -6/Factory History --------- Turn | Location | Event 12 | -11/Scrapyard | Discovered new exit (range 16) 67 | -11/Scrapyard | Entered Materials 119 | -10/Materials | Identified exit to Mines 281 | -10/Materials | Met 8R-AWN 315 | -10/Materials | Build established: Mutant 537 | -10/Materials | Discovered new exit (range 13) 717 | -10/Materials | Discovered new exit (range 16) 1214 | -10/Materials | Discovered new exit (range 15) 1410 | -10/Materials | Entered Mines 1412 | -10/Mines | Followed 8R-AWN into the Mines 1426 | -10/Mines | Learned location of Zion (-6) 1534 | -10/Mines | Discovered new exit (range 5) 1676 | -10/Mines | Assembled infested the area 1681 | -10/Mines | Assisted by a Guerilla fighting off Assembled 1789 | -10/Mines | Core integrity fell below 50% 1946 | -10/Mines | A weapon hastily lodged in a ceiling crevice suddenly fell to the ground 2257 | -10/Mines | Assisted by bots powering up and referring to "LRC-V3" 2534 | -10/Mines | Discovered new exit (range 6) 2545 | -10/Mines | Entered Materials 2545 | -9/Materials | Evolved 2 slots: Propulsion x1, Utility x1 2546 | -9/Materials | Identified exit to Mines 2640 | -9/Materials | Lost 3 parts (1n2w) 2822 | -9/Materials | Repaired Lgt. Treads 2848 | -9/Materials | Repaired Huge Storage Unit 2875 | -9/Materials | Repaired Lgt. Treads 2902 | -9/Materials | Repaired Lgt. Treads 3151 | -9/Materials | Discovered new exit (range 16) 3214 | -9/Materials | Build established: Scavenger-Mutant 3581 | -9/Materials | Core integrity fell below 50% 3731 | -9/Materials | Repaired Lgt. Treads 3758 | -9/Materials | Repaired Lgt. Treads 3951 | -9/Materials | Discovered new exit (range 14) 4661 | -9/Materials | Entered Mines 4696 | -9/Mines | Met a Derelict bent on vengeance 4776 | -9/Mines | Discovered new exit (range 10) 5423 | -9/Mines | Discovered new exit (range 4) 5606 | -9/Mines | Entered Materials 5606 | -8/Materials | Evolved 2 slots: Propulsion x1, Utility x1 5656 | -8/Materials | Repaired Lgt. Treads 6804 | -8/Materials | Discovered new exit (range 8) 7165 | -8/Materials | Lost 4 parts (3n1u) 7678 | -8/Materials | Repaired Propulsion Shielding 7717 | -8/Materials | Repaired Adv. Treads 7827 | -8/Materials | Garrison activated, responded to threat 8509 | -8/Materials | Core integrity fell below 50% 8668 | -8/Materials | Lost 5 parts (3n1u1w) 9066 | -8/Materials | Build established: Mutant 9831 | -8/Materials | Discovered new exit (range 16) 10062 | -8/Materials | Build established: Scavenger-Mutant 10117 | -8/Materials | Entered Factory 10117 | -7/Factory | Evolved 2 slots: Propulsion x1, Utility x1 10256 | -7/Factory | Garrison activated, responded to threat 10415 | -7/Factory | Discovered new exit (range 4) 10775 | -7/Factory | Build established: Mutant 11244 | -7/Factory | Repaired Broken Adv. Treads 11282 | -7/Factory | Core integrity fell below 50% 11580 | -7/Factory | Discovered new exit (range 6) 11919 | -7/Factory | Build established: Scavenger-Mutant 12360 | -7/Factory | Discovered new exit (range 14) 12461 | -7/Factory | Garrison activated, responded to threat 12576 | -7/Factory | Discovered new exit (range 3) 12596 | -7/Factory | Allied Derelicts emerged from ambush trap array 13058 | -7/Factory | Repaired Adv. Treads 13168 | -7/Factory | Entered Lower Caves 13514 | -7/Lower Caves | Spotted B-75 Beast 13531 | -7/Lower Caves | Core integrity fell below 20% 14176 | -7/Lower Caves | Attracted the attention of an 0b10 outpost 14196 | -7/Lower Caves | System corruption reached 10% 14223 | -7/Lower Caves | Destroyed 8 combat bots 14288 | -7/Lower Caves | Discovered new exit (range 12) 14393 | -7/Lower Caves | Entered another Lower Caves area 14545 | -7/Lower Caves | Discovered new exit (range 9) 14681 | -7/Lower Caves | Entered Factory 14681 | -6/Factory | Evolved 2 slots: Utility x2 14784 | -6/Factory | Repaired Lgt. Treads 15169 | -6/Factory | Garrison activated, responded to threat 16222 | -6/Factory | Lost 6 parts (1p3n2u) 16355 | -6/Factory | Core integrity fell below 50% 16365 | -6/Factory | Lost 9 parts (4n3u2w) 16407 | -6/Factory | Sucked down chute 16407 | -6/Factory | Entered Waste 16422 | -6/Waste | EMP discharged 16422 | -6/Waste | System corruption reached 10% 16424 | -6/Waste | Spotted C-40 Crusher 16426 | -6/Waste | Spotted C-40 Crusher 16427 | -6/Waste | Spotted C-40 Crusher 16431 | -6/Waste | Spotted C-40 Crusher 16437 | -6/Waste | Spotted C-40 Crusher 16445 | -6/Waste | Spotted C-40 Crusher 16448 | -6/Waste | Discovered new exit (range 16) 16462 | -6/Waste | Entered Factory 16479 | -6/Factory | Build established: Mutant 16695 | -6/Factory | Core integrity fell below 20% 16704 | -6/Factory | Destroyed by G-50 Soldier with Heavy Laser Last Messages --------------- 16504_ A-15 Conveyor calls for reinforcements. 16504_ ALERT: Hostile activity reported, dispatching reinforcements to area. 16519_ HZXDUATXVGMMY W4DK5H5OJVUR# PPB|&XNV I| 16536_ System corrupted: Energy discharge (-39). 16552_ >S1JUNH/|DWL%2 |AG2VYZNOG5 9HEKHU 16569_ System corrupted: Matter fused (-1). 16601_ System corrupted: Energy discharge (-28). 16629_ &GWTW#VTK93DI=9:MGN7JMT8NINGK=4SS 16640_ Triggered Blade Trap. 16640_ Massive razor-sharp blades shoot up from within the floor. 16640_ Dispersion Rifle severed. 16640_ Core Analyzer severed. 16644_ R-10 Processor collects Dispersion Rifle. 16663_ System corrupted: IFF burst signal emitted. 16675_ ALERT: All DSF locations entering lockdown mode. 16695_ Slammed into T-07 Excavator. 16699_ Slammed into U-05 Engineer. 16700_ ALERT: Construction progress impeded, dispatching reinforcements to local area. Map ----- +----------------------------------------------------+ | ?????????????????????????????????????????????????? | | ?????????????????????????????????????????????????? | | ?????????????????????????????????????????????????? | | ?????????????????????????????????????????????????? | | ?????????????????????????????????????????????????? | | ?????????????????????????????????????????????????? | | ?????????????????????????????????????????????????? | | ?????????????????????????????????????????????????? | | ?????????????????????????????????????????????????? | | ?????????????????????????????????????????????????? | | ?????????????????????????????????????????????????? | | ?????????????????????????????????????????????????? | | ?????????????????????????????????????????????????? | | ?????????????????????????????????????????????????? | | ???????????????????????????##????????????????????? | | ??????????????????#??????"" #????????????????????? | | ??????????????????# ????? #????????????????????? | | ?##############???# """" #????????????????????? | | ?# #???? """" ?????????????????????? | | ?# #????? """" ?#????????????????????? | | ?# #????? """" #????????????????????? | | ?# """" """" #?????? ??????????????????????? | | ?#! """" """" #??????? ???????????????????????? | | ?# """" """" #########+#######+#### ????????? | | ?# """" """" # ????????? | | ?# """" """" # @ ????????? | | ?# """" """" #g ????????? | | ?# ;g u ????????? | | ?# ! #g ?????????? | | ?# ! # ###+#############+##?????????? | | ############### #?? ????????????????????????? | | #??"""???????????????????????? | | #???""???????????????????????? | | #???"" ??????????????????????? | | #????????????????????????????? | | #????????????????????????????? | | #### ########????????????????????????????? | | #??# #???????????????????????????????????? | | #??# #???????????????????????????????????? | | #+#### #???????????????????????????????????? | | # #???????????????????????????????????? | | "" # #???????????????????????????????????? | | "" " # #???????????????????????????????????? | | "T " ####+#####??????????????????????????????????? | | "" " # #??????????????????????????????????? | | "" " # """ #??????????????????????????????????? | | " # """ #??????????????????????????????????? | | " # """ #??????????????????????????????????? | | " # #??????????????????????????????????? | | !! " # !] #??????????????????????????????????? | +----------------------------------------------------+ Best States ------------- Heat Dissipation 56 Energy Generation 18 Energy Capacity 290 Matter Stores 300 Matter Capacity 300 Sight Range 20 Terrain Scan Density 10 Jamming Range 12 Armor Coverage 1200 Core Shielding 20 Power Shielding 33 Propulsion Shielding 66 Utility Shielding 66 Evasion (%) 53 Targeting Accuracy 6 Melee Accuracy 12 Core Analysis 6 Recoil Reduction 5 Item Schematics ----------------- Huge Storage Unit | -9/Materials | Scanalyzed Rocket Launcher | -9/Materials | Scanalyzed Proton Missile Launcher | -8/Materials | Scanalyzed Adv. Treads | -7/Factory | Scanalyzed Hrd. Medium Armor Plating | -7/Factory | Scanalyzed Robot Schematics ------------------ None Fabricated ------------ Nothing Alien Tech Used ----------------- None Achievements -------------- None Challenges ------------ None Game ------ Seed AntimatterSpikedBeam Manual? 0 Play Time 02:42:41 Cumulative 47.6 hours Start 2022.12.13 @ 16:20:07 End 2022.12.13 @ 22:21:21 Sessions 3 Manual Loads 0 Difficulty Rogue Special Mode None Game No. 56 Rogue 56 Adventurer 0 Explorer 0 Win Type - Total 0 Types 0/0/0/0/0/0/0/0/0 Lore% 29 Gallery% 35 Achievement% 30 Wizard Run 0 Options --------- ASCII 0 Keyboard 0 Movement Mouse Keybinds 0 Fullscreen 2 Font 24/Smallcaps Map View 76x50 Tactical HUD 1 Map Filters NONE Filters NONE Steam 1 RUN: c9323ec3-60ff-4c5b-bed7-c14a101a84d3